fUST/lending_fUST_20250309
["ID","MTS","AMOUNT","RATE_DAILY","PERIOD"]
[355749703,1741530551956,-1246.0619202,0.00032481,2]
[355749704,1741530551980,-500.0,0.00032481,2]
[355749705,1741530552008,-1246.0619202,0.00032481,2]
[355749706,1741530552036,-1246.0619202,0.00032481,2]
[355749707,1741530552063,-1246.0619202,0.00032481,2]
[355749708,1741530552092,-1246.0619202,0.00032481,2]
[355749709,1741530552119,-1246.0619202,0.00032481,2]
[355749710,1741530552147,-1246.0619202,0.00032481,2]
[355749711,1741530552174,-1246.0619202,0.00032481,2]
[355749712,1741530552202,-1246.0619202,0.00032481,2]
[355749713,1741530552228,-1246.0619202,0.00032481,2]
[355749714,1741530552256,-1246.0619202,0.00032481,2]
[355749715,1741530552283,-1246.0619202,0.00032481,2]
[355749716,1741530552311,-1246.0619202,0.00032481,2]
[355749717,1741530552338,-1246.0619202,0.00032481,2]
[355749718,1741530552459,-1246.0619202,0.00032481,2]
[355749719,1741530552491,-1246.0619202,0.00032481,2]
[355749720,1741530552519,-1246.0619202,0.00032481,2]
[355749721,1741530552547,-1246.0619202,0.00032481,2]
[355749722,1741530552573,-1246.0619202,0.00032481,2]
[355749723,1741530552599,-1246.0619202,0.00032481,2]
[355749724,1741530552625,-1246.0619202,0.00032481,2]
[355749725,1741530552653,-1246.0619202,0.00032481,2]
[355749726,1741530552679,-1246.0619202,0.00032481,2]
[355749727,1741530552706,-1246.0619202,0.00032481,2]
[355749728,1741530552737,-1246.0619202,0.00032481,2]
[355749729,1741530552764,-1246.0619202,0.00032481,2]
[355749730,1741530552790,-1246.0619202,0.00032481,2]
[355749731,1741530552816,-1246.0619202,0.00032481,2]
[355749732,1741530552843,-1246.0619202,0.00032481,2]
[355749733,1741530552869,-1082.27761926,0.00032481,2]
[355749734,1741530552964,-163.78430094,0.00032481,2]
[355749735,1741530552991,-1246.0619202,0.00032481,2]
[355749736,1741530553016,-1246.0619202,0.00032481,2]
[355749737,1741530553042,-1246.0619202,0.00032481,2]
[355749738,1741530553068,-1246.0619202,0.00032481,2]
[355749739,1741530553093,-991.33956343,0.00032481,2]
[355749740,1741530553127,-254.72235677,0.00032481,2]
[355749741,1741530553155,-1246.0619202,0.00032481,2]
[355749742,1741530553182,-1246.0619202,0.00032481,2]
[355749743,1741530553210,-1246.0619202,0.00032481,2]
[355749744,1741530553237,-1246.0619202,0.00032481,2]
[355749745,1741530553263,-1246.0619202,0.00032481,2]
[355749746,1741530553291,-1246.0619202,0.00032481,2]
[355749747,1741530553318,-1246.0619202,0.00032481,2]
[355749748,1741530553346,-1246.0619202,0.00032481,2]
[355749749,1741530553372,-1246.0619202,0.00032481,2]
[355749750,1741530553400,-1246.0619202,0.00032481,2]
[355749751,1741530553428,-1246.0619202,0.00032481,2]
[355749752,1741530553456,-1246.0619202,0.00032481,2]
[355749753,1741530553484,-1246.0619202,0.00032481,2]
[355749754,1741530553512,-1246.0619202,0.00032481,2]
[355749755,1741530553534,-4191.440626,0.00032482,2]
[355749756,1741530553555,-349.82031971,0.0003325,2]
[355749757,1741530553577,-560.0,0.00033271,2]
[355749758,1741530553599,-1215.52383633,0.000338,2]
[355749759,1741530553619,-152.0,0.00034883,2]
[355749760,1741530553641,-3128.34523621,0.00035315,2]
[355749761,1741530553663,-200.33276565,0.00035316,2]
[355749762,1741530553687,-12146.5052061,0.00035405,3]
[355749763,1741530553710,-12146.5052061,0.00035407,3]
[355749764,1741530553737,-647.50758107,0.00035414,7]
[355749765,1741530553759,-500.0,0.00035414,7]
[355749766,1741530553780,-506.04831657,0.00035414,7]
[355749767,1741530553802,-227.0,0.00035415,2]
[355749768,1741530553824,-170.14,0.00035416,2]
[355749769,1741530553846,-13551.8250948,0.00035427,2]
[355749770,1741530553869,-3555.34015186,0.00035427,2]
[355749775,1741530573113,-500.0,0.0003325,5]
[355749776,1741530573138,-500.0,0.0003325,2]
[355749777,1741530573162,-5608.659498,0.00035427,2]
[355749778,1741530575179,-500.0,0.0003325,5]
[355749779,1741530575206,-15736.00035014,0.00035427,2]
[355749780,1741530575228,-500.0,0.00035473,5]
[355749781,1741530575251,-500.0,0.00035473,5]
[355749782,1741530575273,-500.0,0.00035473,5]
[355749783,1741530575296,-160.04271205,0.00035473,5]
[355749784,1741530575319,-240.22677918,0.00035473,2]
[355749785,1741530575342,-267.43373459,0.00035473,5]
[355749786,1741530575363,-501.93751938,0.00035473,5]
[355749787,1741530575384,-500.0,0.00035473,5]
[355749788,1741530575405,-162.69435949,0.00035473,2]
[355749789,1741530575426,-10521.77245482,0.00035635,3]
[355749794,1741530603502,651.01781051,0.00028,10]
[355749826,1741530632374,-503.32,0.00033,14]
[355749828,1741530632384,-8.53299746,0.0003325,2]
[355749882,1741530638399,-644.887481,0.00032481,2]
[355749884,1741530638541,-585.09622087,0.00032481,2]
[355749885,1741530638551,-154.60974613,0.00032481,2]
[355749889,1741530640176,-1075.37395574,0.00032481,2]
[355749890,1741530640186,-1229.98370187,0.00032481,2]
[355749891,1741530640195,-1229.98370187,0.00032481,2]
[355749892,1741530640205,-1229.98370187,0.00032481,2]
[355749893,1741530640214,-1229.98370187,0.00032481,2]
[355749894,1741530640223,-1229.98370187,0.00032481,2]
[355749895,1741530640232,-1229.98370187,0.00032481,2]
[355749896,1741530640242,-1011.98591335,0.00032481,2]
[355749916,1741530640603,-217.99778852,0.00032481,2]
[355749918,1741530640613,-1229.98370187,0.00032481,2]
[355749920,1741530640622,-1229.98370187,0.00032481,2]
[355749922,1741530640631,-1229.98370187,0.00032481,2]
[355749924,1741530640641,-1229.98370187,0.00032481,2]
[355749926,1741530640651,-1229.98370187,0.00032481,2]
[355749928,1741530640660,-1229.98370187,0.00032481,2]
[355749930,1741530640673,-1229.98370187,0.00032481,2]
[355749932,1741530640682,-1229.98370187,0.00032481,2]
[355749934,1741530640691,-1229.98370187,0.00032481,2]
[355749936,1741530640701,-1229.98370187,0.00032481,2]
[355749938,1741530640710,-1229.98370187,0.00032481,2]
[355749940,1741530640719,-1229.98370187,0.00032481,2]
[355749942,1741530640728,-491.46700254,0.0003325,2]
[355749944,1741530640738,-500.0,0.0003325,5]
[355749946,1741530640751,-500.0,0.0003325,5]
[355749948,1741530640760,-160.78436985,0.0003325,5]
[355749950,1741530640770,-600.0,0.00035395,2]
[355749952,1741530640779,-622.2,0.0003545,2]
[355749954,1741530640788,-645.2214,0.00035505,2]
[355749956,1741530640798,-669.0945918,0.0003556,2]
[355749958,1741530640807,-693.8510917,0.00035615,2]
[355749960,1741530640817,-400.0,0.00035634,2]
[355749962,1741530640827,-1624.73275128,0.00035635,3]
[355749964,1741530640836,-11883.14350771,0.00035645,2]
[355749966,1741530640846,-719.52358209,0.0003567,2]
[355749968,1741530640855,-374.26,0.000357,30]
[355749970,1741530640865,-864.6,0.000357,30]
[355749972,1741530640874,-746.14595463,0.00035725,2]
[355749974,1741530640883,-773.75335495,0.0003578,2]
[355749976,1741530640893,-802.38222908,0.00035835,2]
[355749978,1741530640902,-832.07037156,0.0003589,2]
[355749980,1741530640911,-301.080681,0.0003589,2]
[355749982,1741530640920,-862.8569753,0.00035945,2]
[355749984,1741530640929,-179.791,0.00035999,5]
[355749986,1741530640939,-894.78268339,0.00036,2]
[355749988,1741530640948,-927.88964268,0.00036055,2]
[355749990,1741530640958,-962.22155946,0.0003611,2]
[355749992,1741530640968,-380.0,0.00036148,2]
[355749994,1741530640977,-997.82375716,0.00036165,2]
[355749996,1741530640988,-1894.0754348,0.00036198,2]
[355749998,1741530640997,-1965.84356479,0.000362,98]
[355750000,1741530641006,-1965.84356478,0.000362,98]
[355750003,1741530641016,-1034.74323617,0.0003622,2]
[355750005,1741530641026,-1073.02873591,0.00036275,2]
[355750007,1741530641035,-1112.73079914,0.0003633,2]
[355750009,1741530641045,-1951.65318,0.00036336,2]
[355750011,1741530641054,-250.0,0.00036355,2]
[355750013,1741530641063,-1153.9018387,0.00036385,2]
[355750015,1741530641072,-453.25530675,0.00036999,15]
[355750017,1741530641081,-23404.53582839,0.00037,5]
[355750019,1741530641091,-500.0,0.00037369,2]
[355750021,1741530641102,-2226.90979341,0.00037535,2]
[355750024,1741530641122,-901.43544273,0.00037535,2]
[355750026,1741530641132,-1011.5068848,0.00038177,2]
[355750028,1741530641144,-560.0,0.00038182,2]
[355750030,1741530641153,-500.0,0.00038729,5]
[355750032,1741530641163,-813.46486819,0.00038729,2]
[355750034,1741530641172,-500.0,0.00038729,2]
[355750036,1741530641182,-500.0,0.00038729,5]
[355750038,1741530641191,-671.44551073,0.00038729,5]
[355750040,1741530641201,-500.0,0.00039673,5]
[355750042,1741530641212,-500.0,0.00039673,5]
[355750044,1741530641221,-193.48255796,0.00039674,2]
[355750046,1741530641230,-3128.34523614,0.00039756,2]
[355750048,1741530641241,-1183.81949945,0.000398,60]
[355750140,1741530643410,-271.85687652,0.000398,60]
[355750152,1741530644304,4750.95506313,0.00028,10]
[355750174,1741530646296,-2658.16746942,0.000398,60]
[355750175,1741530646306,-374.26,0.0004,30]
[355750176,1741530646316,-864.6,0.0004,30]
[355750177,1741530646326,-50735.46387286,0.0004,30]
[355750178,1741530646336,-1223.92093892,0.0004,120]
[355750179,1741530646345,-6296.41792605,0.0004,2]
[355750180,1741530646355,-256.66666667,0.00040045,3]
[355750181,1741530646365,-12146.5052061,0.00040047,3]
[355750182,1741530646375,-5885.8575669,0.00040057,2]
[355750183,1741530646385,-500.0,0.000401,5]
[355750184,1741530646395,-1965.84356478,0.00040555,120]
[355750185,1741530646405,-783.0,0.00040913,5]
[355750186,1741530646415,-1000.0,0.00040952,5]
[355750187,1741530646425,-1000.0,0.00040952,5]
[355750188,1741530646435,-161.0,0.00041,14]
[355750189,1741530646445,-210.10868933,0.00041096,2]
[355750190,1741530646455,-1000.0,0.00041096,120]
[355750191,1741530646464,-301.080681,0.00041211,2]
[355750192,1741530646474,-10000.0,0.00041343,120]
[355750193,1741530646484,-772.6464097,0.00041343,64]
[355750194,1741530646496,-12146.5052061,0.00041664,3]
[355750195,1741530646506,-2887.4725667,0.00041674,2]
[355750196,1741530646516,-906.35038654,0.0004179,15]
[355750197,1741530646526,-374.26,0.000418,30]
[355750198,1741530646536,-600.86764469,0.00041918,120]
[355750199,1741530646546,-3128.34523614,0.00041976,28]
[355750200,1741530646556,-2853.46750913,0.00042,120]
[355750201,1741530646566,-179.791,0.00042854,14]
[355750202,1741530646576,-864.6,0.000429,30]
[355750203,1741530646586,-506.78,0.00043,120]
[355750204,1741530646596,-161.0,0.00043151,90]
[355750205,1741530646606,-500.0,0.00043835,120]
[355750206,1741530646616,-1097.0,0.00043839,5]
[355750207,1741530646626,-487.06751933,0.0004388,15]
[355750208,1741530646635,-3128.34523614,0.00044197,28]
[355750209,1741530646645,-500.0,0.00044383,120]
[355750210,1741530646655,-633.52686827,0.00044922,2]
[355750211,1741530646665,-500.0,0.00044931,120]
[355750212,1741530646675,-176.0,0.00045,120]
[355750213,1741530646685,-500.0,0.00045,20]
[355750214,1741530646695,-1000.0,0.00045152,10]
[355750215,1741530646704,-956.71513523,0.00045152,7]
[355750216,1741530646717,-43.28486477,0.00045152,7]
[355750217,1741530646727,-1965.84356478,0.00045433,120]
[355750218,1741530646736,-500.0,0.00045479,120]
[355750219,1741530646747,-2000.0,0.00046,120]
[355750220,1741530646760,-1306.92161319,0.00046,8]
[355750221,1741530918910,1132.44,0.00028,10]
[355750223,1741531028994,1935.03017799,0.000259,4]
[355750224,1741531063428,216.0,0.00028,10]
[355750225,1741531196697,1870.52917197,0.000259,4]
[355750226,1741531205729,65.36733618,0.00028,10]
[355750227,1741531318843,281.75748173,0.0002,99]
[355750228,1741531364317,1808.1781996,0.000259,4]
[355750229,1741531532888,1747.90559285,0.000259,4]
[355750230,1741531640121,-827.09910509,0.000252,2]
[355750231,1741531642095,-1355.36374771,0.000252,2]
[355750234,1741531651249,-6740.5371472,0.000252,2]
[355750235,1741531651272,-300.0,0.00026574,2]
[355750236,1741531651293,-1317.3014477,0.00026672,2]
[355750237,1741531651326,-642.53385459,0.00026672,2]
[355750239,1741531700040,1689.64207333,0.000269,4]
[355750240,1741531700743,1370.32162209,0.00024572,2]
[355750241,1741531747156,-854.52181251,0.00026672,2]
[355750242,1741531747180,-3218.006187,0.00026678,2]
[355750243,1741531747210,-182.973018,0.00027568,2]
[355750244,1741531747233,-1845.9866971,0.00027694,2]
[355750245,1741531747255,-300.0,0.00027903,2]
[355750246,1741531747278,-2269.16427304,0.00027904,2]
[355750247,1741531747300,-163.98833329,0.00027904,2]
[355750248,1741531747321,-500.0,0.00027973,2]
[355750249,1741531747343,-418.46718373,0.00027973,5]
[355750250,1741531747364,-152.0,0.00027983,2]
[355750251,1741531747389,-435.32133799,0.00027993,2]
[355750252,1741531747411,-500.0,0.00027993,2]
[355750253,1741531747432,-176.27227906,0.00027993,2]
[355750254,1741531747455,-500.0,0.00027993,2]
[355750255,1741531747476,-223.55264812,0.00027993,2]
[355750256,1741531747499,-500.0,0.00027993,2]
[355750257,1741531747523,-745.34564572,0.00027993,2]
[355750258,1741531747545,-495.71081232,0.00027993,2]
[355750259,1741531747570,-500.0,0.00027993,2]
[355750260,1741531747601,-500.0,0.00027993,2]
[355750261,1741531747626,-745.34564572,0.00027993,2]
[355750262,1741531747652,-500.0,0.00027993,2]
[355750263,1741531747676,-500.0,0.00027993,2]
[355750264,1741531747701,-745.34564572,0.00027993,2]
[355750265,1741531747729,-500.0,0.00027993,2]
[355750266,1741531747758,-500.0,0.00027993,2]
[355750267,1741531747783,-745.34564572,0.00027993,2]
[355750268,1741531747808,-500.0,0.00027993,2]
[355750269,1741531747832,-300.0,0.00027993,2]
[355750270,1741531747857,-500.0,0.00027993,2]
[355750271,1741531747881,-745.34564572,0.00027993,2]
[355750272,1741531747912,-500.0,0.00027993,2]
[355750273,1741531747937,-500.0,0.00027993,2]
[355750274,1741531747962,-745.34564572,0.00027993,2]
[355750275,1741531747986,-500.0,0.00027993,2]
[355750276,1741531748035,-500.0,0.00027993,2]
[355750277,1741531748064,-745.34564572,0.00027993,2]
[355750278,1741531748091,-500.0,0.00027993,2]
[355750279,1741531748121,-745.34564572,0.00027993,2]
[355750280,1741531748153,-500.0,0.00027993,2]
[355750281,1741531748178,-500.0,0.00027993,2]
[355750282,1741531748209,-745.34564572,0.00027993,2]
[355750283,1741531748234,-500.0,0.00027993,2]
[355750284,1741531748259,-745.34564572,0.00027993,2]
[355750285,1741531748284,-500.0,0.00027993,2]
[355750286,1741531748313,-500.0,0.00027993,2]
[355750287,1741531748339,-745.34564572,0.00027993,2]
[355750288,1741531748364,-246.45985456,0.00027993,2]
[355750289,1741531748388,-745.34564572,0.00027993,2]
[355750290,1741531748416,-500.0,0.00027993,2]
[355750291,1741531748564,-500.0,0.00027993,2]
[355750292,1741531748591,-745.34564572,0.00027993,2]
[355750293,1741531748615,-500.0,0.00027993,2]
[355750294,1741531748640,-500.0,0.00027993,2]
[355750295,1741531748665,-745.34564572,0.00027993,2]
[355750296,1741531748696,-500.0,0.00027993,2]
[355750297,1741531748721,-500.0,0.00027993,2]
[355750298,1741531748746,-745.34564572,0.00027993,2]
[355750299,1741531748770,-500.0,0.00027993,2]
[355750300,1741531748800,-500.0,0.00027993,2]
[355750301,1741531748825,-745.34564572,0.00027993,2]
[355750302,1741531748848,-500.0,0.00027993,2]
[355750303,1741531748872,-745.34564572,0.00027993,2]
[355750304,1741531748901,-500.0,0.00027993,2]
[355750305,1741531748926,-500.0,0.00027993,2]
[355750306,1741531748950,-745.34564572,0.00027993,2]
[355750307,1741531748975,-500.0,0.00027993,2]
[355750308,1741531749000,-745.34564572,0.00027993,2]
[355750309,1741531749023,-745.34564572,0.00027993,2]
[355750310,1741531749047,-500.0,0.00027993,2]
[355750311,1741531749070,-745.34564572,0.00027993,2]
[355750312,1741531749100,-500.0,0.00027993,2]
[355750313,1741531749126,-500.0,0.00027993,2]
[355750314,1741531749150,-745.34564572,0.00027993,2]
[355750315,1741531749176,-745.34564572,0.00027993,2]
[355750316,1741531749205,-500.0,0.00027993,2]
[355750317,1741531749231,-745.34564572,0.00027993,2]
[355750318,1741531749258,-500.0,0.00027993,2]
[355750319,1741531749282,-745.34564572,0.00027993,2]
[355750320,1741531749308,-745.34564572,0.00027993,2]
[355750321,1741531749337,-500.0,0.00027993,2]
[355750322,1741531749361,-745.34564572,0.00027993,2]
[355750323,1741531749389,-500.0,0.00027993,2]
[355750324,1741531749413,-745.34564572,0.00027993,2]
[355750325,1741531749437,-745.34564572,0.00027993,2]
[355750326,1741531749467,-500.0,0.00027993,2]
[355750327,1741531749491,-745.34564572,0.00027993,2]
[355750328,1741531749522,-500.0,0.00027993,2]
[355750329,1741531749545,-745.34564572,0.00027993,2]
[355750330,1741531749569,-745.34564572,0.00027993,2]
[355750331,1741531749598,-500.0,0.00027993,2]
[355750332,1741531749622,-745.34564572,0.00027993,2]
[355750333,1741531749645,-745.34564572,0.00027993,2]
[355750334,1741531749673,-500.0,0.00027993,2]
[355750335,1741531749701,-500.0,0.00027993,2]
[355750336,1741531749730,-745.34564572,0.00027993,2]
[355750337,1741531749754,-745.34564572,0.00027993,2]
[355750338,1741531749783,-500.0,0.00027993,2]
[355750339,1741531749808,-745.34564572,0.00027993,2]
[355750340,1741531749834,-745.34564572,0.00027993,2]
[355750341,1741531749864,-500.0,0.00027993,2]
[355750342,1741531749889,-745.34564572,0.00027993,2]
[355750343,1741531749918,-500.0,0.00027993,2]
[355750344,1741531749940,-745.34564572,0.00027993,2]
[355750345,1741531749973,-500.0,0.00027993,2]
[355750346,1741531749997,-745.34564572,0.00027993,2]
[355750347,1741531750022,-745.34564572,0.00027993,2]
[355750348,1741531750052,-500.0,0.00027993,2]
[355750349,1741531750081,-500.0,0.00027993,2]
[355750350,1741531750106,-745.34564572,0.00027993,2]
[355750351,1741531750133,-745.34564572,0.00027993,2]
[355750352,1741531750250,-745.34564572,0.00027993,2]
[355750353,1741531750279,-500.0,0.00027993,2]
[355750354,1741531750303,-745.34564572,0.00027993,2]
[355750355,1741531750327,-745.34564572,0.00027993,2]
[355750356,1741531750351,-745.34564572,0.00027993,2]
[355750357,1741531750375,-745.34564572,0.00027993,2]
[355750358,1741531750398,-745.34564572,0.00027993,2]
[355750359,1741531750422,-745.34564572,0.00027993,2]
[355750360,1741531750446,-745.34564572,0.00027993,2]
[355750361,1741531750476,-500.0,0.00027993,2]
[355750362,1741531750504,-500.0,0.00027993,2]
[355750363,1741531750532,-500.0,0.00027993,2]
[355750364,1741531750560,-500.0,0.00027993,2]
[355750365,1741531750589,-500.0,0.00027993,2]
[355750366,1741531750617,-500.0,0.00027993,2]
[355750367,1741531750646,-500.0,0.00027993,2]
[355750368,1741531750674,-500.0,0.00027993,2]
[355750369,1741531750703,-500.0,0.00027993,2]
[355750370,1741531750734,-214.07052584,0.00027993,2]
[355750371,1741531750906,-500.0,0.00027973,5]
[355750372,1741531750936,-285.92947416,0.00027993,2]
[355750373,1741531750964,-500.0,0.00027993,2]
[355750374,1741531750988,-2491.95278363,0.00027993,2]
[355750375,1741531751013,-2491.95278363,0.00027993,2]
[355750376,1741531751042,-500.0,0.00027993,2]
[355750377,1741531751067,-2491.95278363,0.00027993,2]
[355750378,1741531751095,-500.0,0.00027993,2]
[355750379,1741531751122,-2491.95278363,0.00027993,2]
[355750380,1741531751151,-2491.95278363,0.00027993,2]
[355750381,1741531751181,-500.0,0.00027993,2]
[355750382,1741531751209,-2491.95278363,0.00027993,2]
[355750383,1741531751233,-2491.95278363,0.00027993,2]
[355750384,1741531751262,-500.0,0.00027993,2]
[355750385,1741531751288,-2491.95278363,0.00027993,2]
[355750386,1741531751317,-500.0,0.00027993,2]
[355750387,1741531751341,-2491.95278363,0.00027993,2]
[355750388,1741531751367,-2491.95278363,0.00027993,2]
[355750389,1741531751396,-500.0,0.00027993,2]
[355750390,1741531751420,-2491.95278363,0.00027993,2]
[355750391,1741531751444,-2491.95278363,0.00027993,2]
[355750392,1741531751474,-500.0,0.00027993,2]
[355750393,1741531751498,-2491.95278363,0.00027993,2]
[355750394,1741531751527,-500.0,0.00027993,2]
[355750395,1741531751553,-2491.95278363,0.00027993,2]
[355750396,1741531751578,-2491.95278363,0.00027993,2]
[355750397,1741531751607,-500.0,0.00027993,2]
[355750398,1741531751633,-2491.95278363,0.00027993,2]
[355750399,1741531751657,-2491.95278363,0.00027993,2]
[355750400,1741531751687,-500.0,0.00027993,2]
[355750401,1741531751712,-2491.95278363,0.00027993,2]
[355750402,1741531751740,-500.0,0.00027993,2]
[355750403,1741531751765,-2491.95278363,0.00027993,2]
[355750404,1741531751882,-500.0,0.00027993,2]
[355750405,1741531751909,-2491.95278363,0.00027993,2]
[355750406,1741531751934,-2491.95278363,0.00027993,2]
[355750407,1741531751967,-500.0,0.00027993,2]
[355750408,1741531751992,-2491.95278363,0.00027993,2]
[355750409,1741531752024,-500.0,0.00027993,2]
[355750410,1741531752048,-2491.95278363,0.00027993,2]
[355750411,1741531752072,-2491.95278363,0.00027993,2]
[355750412,1741531752101,-500.0,0.00027993,2]
[355750413,1741531752133,-2491.95278363,0.00027993,2]
[355750414,1741531752168,-2491.95278363,0.00027993,2]
[355750415,1741531752198,-500.0,0.00027993,2]
[355750416,1741531752228,-2491.95278363,0.00027993,2]
[355750417,1741531752258,-500.0,0.00027993,2]
[355750418,1741531752282,-2491.95278363,0.00027993,2]
[355750419,1741531752310,-500.0,0.00027993,2]
[355750420,1741531752334,-2491.95278363,0.00027993,2]
[355750421,1741531752358,-2491.95278363,0.00027993,2]
[355750422,1741531752380,-91766.5836944,0.00027994,2]
[355750423,1741531752403,-2789.40493857,0.00027994,2]
[355750424,1741531752425,-2937.58551178,0.00028001,2]
[355750425,1741531752448,-500.0,0.00028004,2]
[355750426,1741531752473,-500.0,0.00028265,2]
[355750427,1741531752494,-503.78956182,0.00028278,2]
[355750428,1741531752516,-194.0,0.00028613,2]
[355750429,1741531752538,-412.99,0.00028731,3]
[355750430,1741531752562,-507.14862424,0.00028773,5]
[355750431,1741531752584,-457.80892651,0.00028773,5]
[355750432,1741531752607,-500.0,0.00028773,5]
[355750433,1741531752630,-500.0,0.00029173,5]
[355750434,1741531752652,-500.0,0.00029173,5]
[355750435,1741531752675,-5000.0,0.00029189,2]
[355750436,1741531752701,-5000.0,0.00029189,2]
[355750437,1741531752726,-5000.0,0.00029189,2]
[355750438,1741531752749,-5000.0,0.00029189,2]
[355750439,1741531752771,-1388.443496,0.00029189,2]
[355750440,1741531752797,-182.973018,0.00029222,2]
[355750441,1741531752820,-248.0,0.00029257,2]
[355750442,1741531752843,-250.0,0.00029301,2]
[355750443,1741531752871,-1370.32162209,0.00029572,2]
[355750444,1741531752895,-600.0,0.00029626,2]
[355750445,1741531752920,-30588.8612314,0.00029635,2]
[355750446,1741531752945,-929.80164619,0.00029635,2]
[355750447,1741531752971,-24900.0,0.00029645,2]
[355750448,1741531752993,-500.0,0.00029656,2]
[355750449,1741531753015,-506.14740147,0.00029656,5]
[355750450,1741531753038,-500.0,0.00029656,5]
[355750451,1741531753060,-500.0,0.00029656,5]
[355750452,1741531753082,-500.0,0.00029656,5]
[355750453,1741531753105,-622.2,0.00029681,2]
[355750454,1741531753133,-645.2214,0.00029736,2]
[355750455,1741531753160,-669.0945918,0.00029791,2]
[355750456,1741531753181,-693.8510917,0.00029846,2]
[355750457,1741531753204,-157.307952,0.00029882,2]
[355750458,1741531753227,-157.307952,0.00029882,61]
[355750459,1741531753249,-157.307952,0.00029882,120]
[355750460,1741531753269,-500.0,0.00029888,2]
[355750461,1741531753372,-500.0,0.00029888,5]
[355750462,1741531753395,-719.52358209,0.00029901,2]
[355750463,1741531753416,-318.0,0.00029915,2]
[355750464,1741531753439,-844.3189976,0.00029956,2]
[355750465,1741531753461,-168.0,0.0003,2]
[355750466,1741531753485,-420.0,0.00030138,2]
[355750467,1741531753507,-500.0,0.00030308,5]
[355750468,1741531753529,-500.0,0.00030308,5]
[355750469,1741531753552,-406.0,0.00030588,2]
[355750470,1741531753575,-380.0,0.00030771,2]
[355750471,1741531753598,-1083.0025343,0.0003079,2]
[355750472,1741531753621,-2269.16427298,0.00031147,2]
[355750473,1741531753643,-3465.5304608,0.00032403,64]
[355750474,1741531753665,-587.0,0.00032553,2]
[355750475,1741531753688,-168.0,0.00033,2]
[355750476,1741531753711,-168.0,0.00033,2]
[355750477,1741531753733,-526.26,0.000335,30]
[355750478,1741531753756,-846.3,0.000335,30]
[355750479,1741531753779,-774.78771656,0.00034252,5]
[355750480,1741531753806,-2269.16427298,0.0003439,2]
[355750481,1741531754005,500.0,0.00027993,2]
[355750482,1741531754045,500.0,0.00027993,2]
[355750483,1741531754072,189.71984016,0.00027973,5]
[355750484,1741531754123,500.0,0.00027993,2]
[355750485,1741531754160,500.0,0.00027993,2]
[355750486,1741531754197,500.0,0.00027993,2]
[355750487,1741531754234,500.0,0.00027993,2]
[355750488,1741531754271,500.0,0.00027993,2]
[355750489,1741531754312,500.0,0.00027993,2]
[355750490,1741531754358,500.0,0.00027993,2]
[355750491,1741531754401,500.0,0.00027993,2]
[355750492,1741531754444,500.0,0.00027993,2]
[355750493,1741531754480,500.0,0.00027993,2]
[355750494,1741531754604,296.19444278,0.00027993,2]
[355750495,1741531754639,500.0,0.00027993,2]
[355750496,1741531754675,500.0,0.00027993,2]
[355750497,1741531754714,500.0,0.00027993,2]
[355750498,1741531754748,500.0,0.00027993,2]
[355750499,1741531754825,500.0,0.00027993,2]
[355750500,1741531754859,500.0,0.00027993,2]
[355750501,1741531754902,500.0,0.00027993,2]
[355750502,1741531754941,500.0,0.00027993,2]
[355750503,1741531755357,228.0,0.0003,2]
[355750504,1741531761519,246.61278489,0.00027893,2]
[355750505,1741531761551,500.0,0.00027973,5]
[355750506,1741531762167,1000.0,0.00033452,5]
[355750507,1741531766066,-439.88021812,0.00034652,5]
[355750508,1741531766086,-417.78341817,0.00035,5]
[355750509,1741531766107,-811.1,0.00035,120]
[355750510,1741531766132,-168.0,0.00035125,2]
[355750511,1741531766153,-17327.73629597,0.00035125,2]
[355750512,1741531766508,246.61278489,0.00028491,2]